bitfinex/quotes_SOLUSD_20240717
["timestamp","ask_amount","ask_price","bid_price","bid_amount"]
[1721216245033,6.217,160.85,160.78,1.41353424]
[1721216245229,6.2166,160.86,160.78,1.41353424]
[1721216245429,0.73414156,160.85,160.73,10.0]
[1721216245607,6.2176,160.84,160.74,31.2436557]
[1721216245945,6.2176,160.84,160.75,10.0]
[1721216246131,6.2176,160.84,160.76,1.24361421]
[1721216246433,6.2183,160.82,160.71,43.01763094]
[1721216246635,6.95194156,160.83,160.73,10.0]
[1721216246845,0.73414156,160.82,160.74,45.17]
[1721216247056,6.2178,160.83,160.73,11.24372704]
[1721216247222,0.73414156,160.86,160.74,45.17]
[1721216247418,0.73414156,160.85,160.75,1.24372635]
[1721216247722,0.73414156,160.85,160.76,1.41372791]
[1721216247723,6.2174,160.84,160.76,1.41372791]
[1721216248036,6.2187,160.81,160.76,0.17]
[1721216248219,6.2187,160.81,160.75,0.17]
[1721216248617,6.2187,160.81,160.72,32.18104406]
[1721216248820,6.95224156,160.83,160.72,42.18104406]
[1721216249051,0.73414156,160.82,160.72,42.18104406]
[1721216249221,0.73414156,160.83,160.74,10.0]
[1721216249424,6.217,160.85,160.75,1.24372721]
[1721216249740,0.73414156,160.85,160.75,1.24372721]
[1721216250059,6.2181,160.82,160.75,45.0]
[1721216250351,0.73414156,160.85,160.74,0.17]
[1721216250352,6.2189,160.8,160.74,0.17]
[1721216250555,6.95344156,160.79,160.73,30.0]
[1721216250722,6.95344156,160.79,160.71,23.01763094]
[1721216251119,0.73414156,160.78,160.71,23.01763094]
[1721216251849,6.95374156,160.78,160.71,23.01763094]
[1721216252052,0.73414156,160.82,160.71,23.01763094]
[1721216252254,20.73414156,160.82,160.72,10.0]
[1721216252435,20.73414156,160.82,160.73,2.3307464]
[1721216252846,26.95224156,160.82,160.73,2.3307464]
[1721216253154,20.73414156,160.82,160.74,0.34]
[1721216253350,26.95234156,160.82,160.74,0.34]
[1721216253558,0.73414156,160.82,160.74,0.34]
[1721216253855,20.73414156,160.82,160.73,45.0]
[1721216254058,6.2189,160.8,160.74,1.24402187]
[1721216254231,20.73414156,160.79,160.71,6.49753094]
[1721216254753,6.2207,160.76,160.67,15.0142]
[1721216255051,0.73414156,160.75,160.68,30.0]
[1721216255258,6.2212,160.74,160.68,30.0]
[1721216255422,0.73414156,160.73,160.68,30.0]
[1721216255622,20.73414156,160.75,160.68,30.0]
[1721216256135,20.73414156,160.75,160.67,15.0142]
[1721216256457,26.95504156,160.75,160.67,15.0142]
[1721216256640,6.2221,160.72,160.66,6.49954996]
[1721216256828,6.95644156,160.71,160.61,15.4206]
[1721216257031,0.73414156,160.73,160.63,6.50084624]
[1721216257229,20.73414156,160.73,160.64,1.24461362]
[1721216257545,20.73414156,160.73,160.63,6.50084624]
[1721216258556,6.2232,160.69,160.63,6.50084624]
[1721216258761,6.2228,160.7,160.63,6.50084624]
[1721216258964,0.73414156,160.69,160.64,1.24471405]
[1721216259259,6.95734156,160.69,160.64,1.24471405]
[1721216259467,6.2235,160.68,160.63,6.50084624]
[1721216259777,6.95804156,160.67,160.63,6.50084624]
[1721216259943,0.73414156,160.66,160.61,15.4206]
[1721216260256,6.2247,160.65,160.59,10.09065427]
[1721216260582,6.2247,160.65,160.6,1.24511795]
[1721216260749,6.95854156,160.66,160.61,1.24508806]
[1721216260945,0.73414156,160.65,160.59,6.49954885]
[1721216261262,6.95914156,160.65,160.59,6.49954885]
[1721216261461,6.95954156,160.64,160.59,6.49954885]
[1721216261659,6.226,160.62,160.56,15.8699]
[1721216261875,0.73414156,160.61,160.56,15.8699]
[1721216262186,0.73414156,160.66,160.57,1.24531246]
[1721216262361,20.73414156,160.67,160.58,10.0]
[1721216262862,20.73414156,160.67,160.56,15.8699]
[1721216263256,20.73414156,160.67,160.57,10.0]
[1721216263461,20.0,160.67,160.57,10.0]
[1721216263688,0.73414156,160.66,160.58,45.17]
[1721216263982,20.0,160.67,160.58,45.17]
[1721216264163,20.0,160.67,160.59,0.17]
[1721216264365,20.73414156,160.67,160.59,0.17]
[1721216264548,26.95804156,160.67,160.59,0.17]
[1721216264752,6.2244,160.66,160.59,0.17]
[1721216264951,6.2244,160.66,160.59,1.41503498]
[1721216265176,6.2244,160.66,160.6,1.24503415]
[1721216265373,6.95884156,160.65,160.59,1.4150342]
[1721216265681,6.95884156,160.65,160.59,1.2450342]
[1721216266268,6.95954156,160.64,160.59,1.24511694]
[1721216266586,6.95954156,160.64,160.57,1.2452196]
[1721216266587,0.73414156,160.64,160.57,1.2452196]
[1721216266790,50.9178,160.67,160.56,15.8699]
[1721216266791,6.2248,160.65,160.58,1.24526038]
[1721216267091,20.0,160.67,160.58,11.24526038]
[1721216267260,20.0,160.67,160.58,10.0]
[1721216267788,20.73414156,160.67,160.58,10.0]
[1721216268080,20.73414156,160.67,160.59,0.34]
[1721216268392,20.73414156,160.67,160.59,46.41487997]
[1721216268559,6.95854156,160.66,160.59,1.41487997]
[1721216268758,6.224,160.67,160.59,1.41487997]
[1721216268970,6.95844156,160.66,160.59,1.41487997]
[1721216269181,6.2239,160.68,160.59,0.17]
[1721216269379,26.95804156,160.67,160.59,0.34]
[1721216269582,6.95844156,160.66,160.59,0.34]
[1721216269968,26.2239,160.67,160.59,0.34]
[1721216270390,0.73414156,160.7,160.59,10.34]
[1721216270622,0.73414156,160.71,160.62,15.242]
[1721216270897,0.73414156,160.71,160.63,0.34]
[1721216271055,0.73414156,160.7,160.62,15.242]
[1721216271473,0.73414156,160.7,160.63,1.24487018]
[1721216271695,6.2252,160.64,160.56,10.0]
[1721216271869,0.73414156,160.68,160.56,10.0]
[1721216272063,0.73414156,160.67,160.56,10.0]
[1721216272284,20.73414156,160.68,160.58,10.0]
[1721216272476,6.3605,160.72,160.57,23.4235273]
[1721216272477,6.2251,160.64,160.57,22.1785]
[1721216272675,0.73414156,160.67,160.57,22.1785]
[1721216272881,6.2255,160.63,160.57,22.1785]
[1721216273495,0.73414156,160.62,160.57,15.5931]
[1721216273797,20.73414156,160.66,160.57,15.5931]
[1721216274090,22.3905,160.65,160.55,7.44244542]
[1721216274292,20.73414156,160.64,160.55,0.943379]
[1721216274802,36.29714156,160.64,160.55,0.943379]
[1721216274988,6.227,160.59,160.55,0.943379]
[1721216275291,6.2274,160.58,160.55,0.943379]
[1721216275490,15.5657,160.61,160.55,0.943379]
[1721216275659,20.0,160.6,160.55,0.943379]
[1721216276066,6.2278,160.57,160.55,0.943379]
[1721216276264,6.2274,160.58,160.55,0.943379]
[1721216276763,20.0,160.6,160.55,0.943379]
[1721216276977,6.2278,160.57,160.55,0.943379]
[1721216277892,20.0,160.61,160.55,0.943379]
[1721216277893,6.2282,160.56,160.55,0.943379]
[1721216278412,6.2279,160.57,160.55,0.943379]
[1721216278872,20.0,160.61,160.55,0.943379]
[1721216278873,6.2282,160.56,160.55,0.943379]
[1721216280676,6.226,160.62,160.55,0.943379]
[1721216280885,22.3905,160.65,160.55,0.943379]
[1721216281076,6.2267,160.6,160.55,0.943379]
[1721216281396,22.3905,160.65,160.55,0.943379]
[1721216281599,6.1712,160.69,160.57,15.0106]
[1721216281781,6.2242,160.67,160.58,46.41505837]
[1721216281976,6.2242,160.67,160.55,0.943379]
[1721216281977,6.2269,160.6,160.55,0.943379]
[1721216282205,6.2277,160.58,160.55,0.943379]
[1721216282414,15.5654,160.62,160.55,0.943379]
[1721216282789,6.2274,160.58,160.55,0.943379]
[1721216283097,15.5654,160.62,160.55,0.943379]
[1721216283098,6.2282,160.56,160.55,0.943379]
[1721216283302,26.2282,160.56,160.55,0.943379]
[1721216283904,20.0,160.56,160.55,0.943379]
[1721216284282,6.227,160.59,160.55,0.943379]
[1721216284499,26.2274,160.58,160.55,0.943379]
[1721216284992,15.5643,160.63,160.55,0.943379]
[1721216285190,6.1712,160.64,160.55,0.943379]
[1721216285695,6.2265,160.61,160.55,2.18880293]
[1721216285897,6.2267,160.6,160.55,2.18880293]
[1721216286300,6.2267,160.6,160.55,0.943379]
[1721216286502,6.2267,160.6,160.55,45.943379]
[1721216286885,6.2262,160.62,160.55,45.943379]
[1721216287105,6.1712,160.64,160.56,0.17]
[1721216287317,6.2265,160.61,160.56,0.17]
[1721216287701,6.2259,160.62,160.56,0.17]
[1721216288131,6.2247,160.65,160.56,1.58521395]
[1721216288291,6.2248,160.65,160.56,1.58521395]
[1721216288611,6.1217,160.68,160.56,0.34]
[1721216288918,6.2254,160.63,160.56,0.34]
[1721216289218,15.5606,160.67,160.56,0.34]
[1721216289594,6.2259,160.62,160.56,0.34]
[1721216289795,15.5606,160.67,160.56,0.34]
[1721216289995,6.1217,160.68,160.57,10.0]
[1721216290192,6.2248,160.65,160.58,45.34]
[1721216290405,6.2252,160.64,160.58,45.34]
[1721216290715,20.0,160.67,160.55,10.943379]
[1721216290716,6.2258,160.63,160.55,0.943379]
[1721216290926,6.2251,160.64,160.56,0.34]
[1721216291214,6.2254,160.63,160.56,0.34]
[1721216291515,6.2263,160.61,160.56,0.17]
[1721216291692,6.2259,160.62,160.56,0.17]
[1721216292110,35.5599,160.67,160.55,45.943379]
[1721216292323,6.2282,160.56,160.55,0.943379]
[1721216292822,26.2282,160.56,160.55,0.943379]
[1721216295298,20.0,160.56,160.55,0.943379]
[1721216295698,26.2282,160.56,160.55,0.943379]
[1721216296117,20.0,160.56,160.55,0.943379]
[1721216296696,26.2282,160.56,160.55,0.943379]
[1721216296896,15.5655,160.62,160.55,0.943379]
[1721216297304,6.2527,160.63,160.55,0.943379]
[1721216297599,6.2266,160.6,160.55,0.943379]
[1721216297811,6.2262,160.62,160.56,1.24542386]
[1721216298014,6.226,160.62,160.56,1.24542386]
[1721216298309,6.2527,160.67,160.55,16.127879]
[1721216298623,6.2271,160.59,160.55,17.37323672]
[1721216298921,6.2276,160.58,160.55,16.127879]
[1721216299121,6.2275,160.58,160.55,16.127879]
[1721216300116,6.2271,160.59,160.55,16.127879]
[1721216300526,6.227,160.59,160.55,16.127879]
[1721216300704,15.5633,160.64,160.55,16.127879]
[1721216301015,6.2274,160.58,160.55,16.127879]
[1721216301223,6.2274,160.58,160.55,0.943379]
[1721216301431,6.2281,160.57,160.55,0.943379]
[1721216301597,6.2278,160.57,160.55,0.943379]
[1721216302129,6.2274,160.58,160.55,0.943379]
[1721216302617,15.5652,160.62,160.55,0.943379]
[1721216302813,20.0,160.61,160.55,0.943379]
[1721216303223,6.2277,160.58,160.55,0.943379]
[1721216303612,26.2263,160.61,160.55,0.943379]
[1721216304300,20.0,160.61,160.55,0.943379]
[1721216304504,6.2262,160.61,160.55,0.943379]
[1721216304706,6.226,160.62,160.55,0.943379]
[1721216304928,6.226,160.62,160.56,1.24533412]
[1721216305121,6.2527,160.67,160.55,0.943379]
[1721216305317,6.2527,160.67,160.56,0.17]
[1721216305519,6.2527,160.67,160.55,0.943379]
[1721216305722,6.2259,160.62,160.55,0.943379]
[1721216306035,6.2254,160.63,160.56,1.24533345]
[1721216306202,6.2527,160.67,160.55,0.943379]
[1721216306526,6.2252,160.64,160.56,0.17]
[1721216306732,20.0,160.63,160.56,46.58520279]
[1721216307227,20.0,160.63,160.55,0.943379]
[1721216307537,6.2274,160.59,160.55,0.943379]
[1721216307708,20.0,160.58,160.55,0.943379]
[1721216307899,51.1224,160.66,160.55,0.943379]
[1721216308100,6.2274,160.58,160.55,0.943379]
[1721216308327,15.5641,160.63,160.55,0.943379]
[1721216308509,20.0,160.62,160.55,0.943379]
[1721216308826,6.2275,160.58,160.55,0.943379]
[1721216309001,6.2282,160.56,160.55,0.943379]
[1721216309201,6.2278,160.57,160.55,0.943379]
[1721216309403,6.2274,160.58,160.55,0.943379]
[1721216312336,20.0,160.57,160.55,0.943379]
[1721216312836,20.0,160.6,160.55,0.943379]
[1721216313037,6.2282,160.56,160.55,0.943379]
[1721216313332,26.2282,160.56,160.55,0.943379]
[1721216313825,6.2277,160.58,160.55,0.943379]
[1721216314127,6.2277,160.58,160.55,17.160479]
[1721216315020,20.0,160.57,160.55,0.943379]
[1721216315411,21.3658,160.64,160.55,0.943379]
[1721216315741,6.2278,160.57,160.55,0.943379]
[1721216315914,6.2282,160.56,160.55,0.943379]
[1721216316611,26.2282,160.56,160.55,0.943379]
[1721216321212,6.2279,160.57,160.55,0.943379]
[1721216321432,15.5662,160.61,160.55,0.943379]
[1721216321635,6.2282,160.56,160.55,0.943379]
[1721216324322,15.5662,160.61,160.55,0.943379]
[1721216324649,6.2279,160.57,160.55,0.943379]
[1721216325340,15.5662,160.61,160.55,0.943379]
[1721216325341,6.2272,160.59,160.55,0.943379]
[1721216325671,6.1834,160.63,160.55,0.943379]
[1721216326251,6.2272,160.59,160.55,0.943379]
[1721216326731,6.2275,160.58,160.55,0.943379]
[1721216327550,6.2278,160.57,160.55,0.943379]
[1721216328847,6.2267,160.6,160.55,0.943379]
[1721216329042,6.227,160.59,160.55,0.943379]
[1721216329222,15.5633,160.64,160.55,0.943379]
[1721216329419,6.2266,160.6,160.55,0.943379]
[1721216330344,6.2266,160.6,160.56,1.2454995]
[1721216330671,6.2266,160.6,160.55,0.943379]
[1721216332452,15.5633,160.64,160.55,0.943379]
[1721216332752,6.2261,160.62,160.56,1.41550173]
[1721216332938,26.2255,160.63,160.56,1.41550173]
[1721216333130,26.2255,160.63,160.56,0.17]
[1721216333329,26.2255,160.63,160.56,0.34]
[1721216333660,6.2258,160.62,160.56,0.34]
[1721216333950,26.2255,160.63,160.56,0.34]
[1721216334157,6.2259,160.62,160.56,0.34]
[1721216334326,20.0,160.63,160.56,0.34]
[1721216334530,20.0,160.66,160.56,0.34]
[1721216334733,6.2261,160.62,160.56,0.34]
[1721216335151,20.0,160.66,160.56,1.24528001]
[1721216335152,6.2263,160.61,160.56,1.24528001]
[1721216335452,20.0,160.66,160.55,46.113379]
[1721216335658,6.2263,160.61,160.56,0.17]
[1721216336952,6.226,160.62,160.56,0.17]
[1721216337345,6.2266,160.6,160.56,0.17]
[1721216337644,6.2264,160.61,160.56,0.17]
[1721216337847,6.2264,160.61,160.56,1.41534767]
[1721216338043,6.2268,160.6,160.56,0.17]
[1721216339267,20.0,160.66,160.56,0.17]
[1721216339428,6.2255,160.63,160.56,0.34]
[1721216339627,20.0,160.62,160.56,0.34]
[1721216339864,6.2265,160.61,160.56,0.17]
[1721216341248,6.2267,160.6,160.56,0.17]
[1721216341466,6.2271,160.59,160.55,0.943379]
[1721216341630,20.0,160.62,160.55,0.943379]
[1721216341631,6.2267,160.6,160.55,0.943379]
[1721216341827,6.2267,160.6,160.56,1.2454544]
[1721216342030,6.2267,160.6,160.55,0.943379]
[1721216342031,6.2263,160.61,160.55,0.943379]
[1721216342230,20.0,160.62,160.55,0.943379]
[1721216342231,6.2268,160.6,160.55,0.943379]
[1721216342467,26.2262,160.62,160.55,0.943379]
[1721216342766,20.0,160.62,160.57,2.30045508]
[1721216342956,20.0,160.62,160.58,1.24524573]
[1721216343458,26.2259,160.62,160.56,0.17]
[1721216343655,20.0,160.62,160.56,0.17]
[1721216343971,6.2272,160.59,160.55,0.943379]
[1721216344131,6.228,160.57,160.55,0.943379]
[1721216344333,6.2275,160.58,160.55,0.943379]
[1721216345034,6.2271,160.59,160.55,0.943379]
[1721216345230,6.2275,160.58,160.55,0.943379]
[1721216346347,6.2278,160.57,160.55,0.943379]
[1721216346952,6.2275,160.58,160.55,0.943379]
[1721216348669,6.2279,160.57,160.55,0.943379]
[1721216348852,6.2282,160.56,160.55,0.943379]
[1721216351174,6.2278,160.57,160.55,0.943379]
[1721216351341,6.2282,160.56,160.55,0.943379]
[1721216353751,26.2282,160.56,160.55,0.943379]
[1721216354280,20.0,160.56,160.55,0.943379]
[1721216354589,26.2282,160.56,160.55,0.943379]
[1721216355369,6.2277,160.58,160.55,0.943379]
[1721216355755,6.2282,160.56,160.55,0.943379]
[1721216355947,6.2277,160.58,160.55,0.943379]
[1721216356348,6.2278,160.57,160.55,0.943379]
[1721216356558,6.2282,160.56,160.55,0.943379]
[1721216356755,6.2074,160.64,160.55,0.943379]
[1721216357357,6.2272,160.59,160.55,0.943379]
[1721216357945,15.5641,160.63,160.55,0.943379]
[1721216358159,6.2074,160.64,160.55,2.18880333]
[1721216358576,6.2267,160.6,160.55,0.943379]
[1721216359158,6.2271,160.59,160.55,0.943379]
[1721216359783,6.2262,160.61,160.55,0.943379]
[1721216361561,6.2258,160.63,160.57,0.17]
[1721216361760,6.2259,160.62,160.57,0.17]
[1721216361963,6.2262,160.61,160.57,0.17]
[1721216362186,26.2259,160.62,160.56,0.17]
[1721216362357,26.226,160.62,160.56,0.34]
[1721216363160,6.2254,160.64,160.56,0.34]
[1721216363492,6.2254,160.64,160.56,45.34]
[1721216363678,6.2255,160.63,160.56,45.34]
[1721216364262,6.2255,160.63,160.56,55.34]
[1721216364679,15.5603,160.67,160.56,45.34]
[1721216364680,6.2258,160.62,160.56,45.34]
[1721216364875,6.2255,160.63,160.56,0.34]
[1721216365071,15.5603,160.67,160.56,0.34]
[1721216365284,6.2256,160.63,160.56,0.34]
[1721216366162,20.0,160.66,160.56,11.58525067]
[1721216366369,6.2252,160.64,160.58,15.9004]
[1721216366665,6.2249,160.65,160.59,46.58513668]
[1721216367986,6.2251,160.64,160.59,46.58513668]
[1721216368193,14.15525216,160.72,160.59,55.34]
[1721216368384,31.0999,160.78,160.59,55.34]
[1721216368385,6.4867,160.76,160.62,10.0]
[1721216368590,6.4867,160.76,160.64,10.0]
[1721216368796,6.2212,160.74,160.65,46.58445446]
[1721216369092,15.5506,160.77,160.66,32.1584]
[1721216369292,15.5506,160.77,160.67,46.58433839]
[1721216369504,6.2211,160.75,160.68,1.24433347]
[1721216369796,22.0342,160.8,160.69,0.34]
[1721216370003,6.4867,160.8,160.7,11.24418532]
[1721216370167,6.2197,160.78,160.71,45.34]
[1721216370368,15.5446,160.83,160.72,26.4062]
[1721216370591,15.5446,160.83,160.73,45.34]
[1721216370592,6.2189,160.8,160.73,45.34]
[1721216370796,15.5446,160.83,160.73,45.34]
[1721216370983,6.2205,160.76,160.73,45.17]
[1721216371194,15.5446,160.83,160.73,45.17]
[1721216371383,6.2201,160.77,160.73,45.17]
[1721216372271,15.5446,160.83,160.73,45.17]
[1721216372484,6.2189,160.8,160.74,0.17]
[1721216372689,6.4867,160.84,160.74,0.17]
[1721216372888,22.0308,160.84,160.74,0.17]
[1721216373090,6.22,160.78,160.73,51.811]
[1721216373397,6.4867,160.84,160.74,1.24405701]
[1721216373570,15.4248,160.86,160.75,0.34]
[1721216373770,6.2181,160.82,160.75,0.34]
[1721216374184,6.2181,160.82,160.76,1.24376578]
[1721216374388,6.2181,160.82,160.77,1.41374388]
[1721216374596,6.2177,160.83,160.78,0.17]
[1721216374901,6.2177,160.83,160.78,0.34]
[1721216375081,6.2181,160.82,160.78,0.34]
[1721216375475,6.2177,160.83,160.78,0.34]
[1721216375679,6.2177,160.83,160.78,0.17]
[1721216376014,6.2181,160.82,160.78,0.17]
[1721216376701,15.5406,160.87,160.78,0.17]
[1721216376702,6.2178,160.83,160.78,0.17]
[1721216377000,6.2174,160.84,160.78,0.17]
[1721216378003,6.2174,160.84,160.79,15.5308]
[1721216378234,6.217,160.85,160.8,46.41354666]
[1721216378704,6.2166,160.86,160.8,46.41354666]
[1721216378878,6.2166,160.86,160.8,45.17]
[1721216379079,115.538,160.9,160.8,45.17]
[1721216379279,6.2174,160.84,160.8,45.17]
[1721216379688,6.2174,160.84,160.81,1.24351661]
[1721216379879,6.217,160.85,160.8,45.17]
[1721216380182,100.0,160.9,160.81,1.41349162]
[1721216380491,6.2158,160.88,160.82,0.17]
[1721216380803,6.2155,160.89,160.82,1.41330757]
[1721216381001,6.2158,160.88,160.82,1.41330757]
[1721216381188,6.2165,160.87,160.82,0.17]
[1721216381503,6.2168,160.86,160.81,0.17]
[1721216381702,6.2168,160.86,160.81,1.41342513]
[1721216381909,6.2159,160.88,160.81,1.41342513]
[1721216382096,6.2155,160.89,160.82,0.17]
[1721216382499,106.2151,160.9,160.82,0.17]
[1721216382702,20.0,160.89,160.81,0.34]
[1721216383382,100.0,160.9,160.82,11.24315378]
[1721216383581,100.0,160.9,160.84,16.0086]
[1721216383781,100.0,160.9,160.85,45.34]
[1721216385193,100.0,160.9,160.86,1.2429882]
[1721216385384,100.0,160.9,160.87,0.17]
[1721216385580,100.0,160.9,160.85,45.0]
[1721216385803,6.2161,160.88,160.84,16.0086]
[1721216386005,6.2161,160.88,160.85,1.24328012]
[1721216386412,6.2155,160.89,160.85,1.24328012]
[1721216386814,6.2159,160.88,160.84,16.0086]
[1721216387103,6.2159,160.88,160.85,1.24321333]
[1721216387309,6.2162,160.87,160.85,1.24321333]
[1721216387612,6.2159,160.88,160.85,1.24321333]
[1721216387909,100.0,160.9,160.84,16.0086]
[1721216388112,6.2163,160.87,160.84,16.0086]
[1721216388483,100.0,160.9,160.84,16.0086]
[1721216388689,6.2169,160.85,160.84,16.0086]
[1721216388913,6.2166,160.86,160.84,16.0086]
[1721216389293,6.2163,160.87,160.84,16.0086]
[1721216389909,6.2166,160.86,160.84,16.0086]
[1721216390419,6.2163,160.87,160.84,16.0086]
[1721216390745,6.2169,160.85,160.8,6.6047]
[1721216390897,6.2174,160.84,160.8,6.6047]
[1721216391307,6.217,160.85,160.8,6.6047]
[1721216391713,115.5384,160.9,160.8,6.6047]
[1721216391890,6.2172,160.85,160.8,6.6047]
[1721216392087,6.2172,160.85,160.81,45.0]
[1721216392514,115.5384,160.9,160.82,1.41344647]
[1721216392697,115.5384,160.9,160.83,1.24329238]
[1721216392698,6.2159,160.88,160.83,1.24329238]
[1721216393291,100.0,160.9,160.83,1.24329238]
[1721216393520,6.2155,160.89,160.84,0.34]
[1721216393717,100.0,160.9,160.85,16.82141157]
[1721216393889,100.0,160.9,160.86,45.0]
[1721216394086,100.0,160.9,160.86,46.24309381]
[1721216394290,100.0,160.9,160.86,45.0]
[1721216394898,106.2151,160.9,160.86,45.0]
[1721216395306,6.2155,160.89,160.86,45.0]
[1721216395618,100.0,160.9,160.86,45.0]
[1721216395818,6.2154,160.89,160.86,45.0]
[1721216396200,100.0,160.9,160.81,16.3631]
[1721216396505,6.2166,160.86,160.81,16.3631]
[1721216396897,6.2162,160.87,160.81,17.60648691]
[1721216397108,6.2159,160.88,160.82,1.24333306]
[1721216397329,100.0,160.9,160.82,1.24323696]
[1721216397545,6.2162,160.87,160.82,1.24323696]
[1721216397837,100.0,160.9,160.82,1.24323696]
[1721216397999,26.2155,160.89,160.82,1.24323696]
[1721216398324,6.2154,160.89,160.83,0.34]
[1721216398529,100.0,160.9,160.83,0.34]
[1721216398828,106.2153,160.9,160.83,0.34]
[1721216399033,106.2153,160.9,160.83,10.34]
[1721216399235,106.2153,160.9,160.84,45.0]
[1721216399410,106.2153,160.9,160.85,0.34]
[1721216399826,100.0,160.9,160.85,0.34]
[1721216400205,106.215,160.9,160.85,0.34]
[1721216400407,100.0,160.9,160.85,0.34]
[1721216401020,6.2156,160.89,160.84,45.0]
[1721216402634,100.0,160.9,160.81,16.3631]
[1721216402933,6.217,160.85,160.81,17.60638024]
[1721216403123,6.2166,160.86,160.81,17.60638024]
[1721216403438,6.2161,160.88,160.81,16.3631]
[1721216403601,6.2158,160.88,160.81,16.3631]
[1721216403800,6.2155,160.89,160.82,1.24325309]
[1721216404029,6.2159,160.88,160.81,16.3631]
[1721216404231,100.0,160.9,160.82,46.24319909]
[1721216404529,6.2169,160.86,160.82,45.0]
[1721216405103,100.0,160.9,160.82,45.0]
[1721216405435,6.2166,160.86,160.82,45.0]
[1721216406022,6.2162,160.87,160.83,1.24338184]
[1721216406419,6.2158,160.88,160.83,1.24338184]
[1721216406641,6.2158,160.88,160.84,0.17]
[1721216406840,6.2158,160.88,160.83,0.34]
[1721216407332,26.2154,160.89,160.83,0.34]
[1721216408216,20.0,160.89,160.83,0.34]
[1721216408638,100.0,160.9,160.83,10.34]
[1721216408817,100.0,160.9,160.84,45.0]
[1721216409014,100.0,160.9,160.85,11.5830322]
[1721216409213,100.0,160.9,160.87,15.1946]
[1721216409528,100.0,160.9,160.88,45.34]
[1721216410755,106.215,160.9,160.88,45.17]
[1721216410916,106.2151,160.9,160.87,15.1946]
[1721216411244,100.0,160.9,160.87,15.1946]
[1721216411735,100.0,160.9,160.83,16.0219]
[1721216412149,100.0,160.9,160.84,10.0]
[1721216412350,100.0,160.9,160.84,11.24311429]
[1721216412532,100.0,160.9,160.84,10.0]
[1721216413250,100.0,160.9,160.83,26.0219]
[1721216413251,100.0,160.9,160.86,10.0]
[1721216413433,100.0,160.9,160.87,45.34]
[1721216414432,100.0,160.9,160.88,1.24298549]
[1721216414745,100.0,160.9,160.89,0.34]
[1721216415121,100.0,160.9,160.89,0.17]
[1721216415348,100.0,160.9,160.88,0.34]
[1721216417736,100.0,160.9,160.88,0.17]
[1721216418144,100.0,160.9,160.88,0.34]
[1721216418348,114.86,160.9,160.88,0.34]
[1721216419945,14.86,160.89,160.88,0.34]
[1721216421233,100.0,160.9,160.88,0.34]
[1721216421427,14.86,160.89,160.88,0.34]
[1721216421622,100.0,160.9,160.88,0.34]
[1721216421847,114.86,160.9,160.88,0.34]
[1721216422326,100.0,160.9,160.88,0.34]
[1721216423856,114.86,160.9,160.88,0.34]
[1721216425546,100.0,160.9,160.88,0.34]
[1721216427354,100.0,160.9,160.88,1.58297864]
[1721216427538,100.0,160.9,160.89,10.0]
[1721216427870,100.0,160.9,160.89,45.34]
[1721216428042,100.0,160.9,160.89,0.34]
[1721216428370,100.0,160.9,160.89,0.17]
[1721216428672,114.86,160.9,160.89,0.17]